Workbook

Sheet AHT
A1: Asymmetric Hyperbolic Tangent | W1: T | X1: Y
W2: (°C)
B3: Experimental data | D3: T (°C) | E3: Y(T) | W3: -200 | X3: =(LS+US)/2+(US-LS)/2*TANH(($W3-T0_ATANH)/(C_ATANH+D_ATANH*$W3)) -> 0.0003725066589
D4: -196 | E4: 0.09050824906 | F4: =IF(ISBLANK(Temperatures),"",(LS+US)/2+(US-LS)/2*TANH((Temperatures-T0_ATANH)/(C_ATANH+D_ATANH*Temperatures))) -> 0.0005775820519 | G4: =IF(ISBLANK(Temperatures),"",Y_values-Fit_ATANH) -> 0.089930667 | W4: =W3+5 -> -195 | X4: 0.0006433583148
D5: -175 | E5: 0.2095417747 | F5: 0.004838393683 | G5: 0.204703381 | W5: =W4+5 -> -190 | X5: 0.00109173189
D6: -150 | E6: 0.568703326 | F6: 0.04356336708 | G6: 0.5251399589 | W6: -185 | X6: 0.001821745161
D7: -125 | E7: 1.539355713 | F7: 0.2923337405 | G7: 1.247021972 | W7: -180 | X7: 0.002991639547
D8: -100 | E8: 4.136828291 | F8: 1.539355713 | G8: 2.597472579 | W8: -175 | X8: 0.004838393683
D9: -75 | E9: 10.90795083 | F9: 6.551978444 | G9: 4.355972387 | W9: -170 | X9: 0.007711947534
D10: -50 | E10: 27.41667207 | F10: 22.48769797 | G10: 4.928974099 | W10: -165 | X10: 0.01212216522
D11: -25 | E11: 61.85652692 | F11: 59.50561971 | G11: 2.350907203 | W11: -160 | X11: 0.01880246783
D12: -5 | E12: 103.5381806 | F12: 103.4231845 | G12: 0.1149960841 | W12: -155 | X12: 0.02879501086
D13: 0 | E13: 115 | F13: 115 | G13: 0 | W13: -150 | X13: 0.04356336708
D14: 5 | E14: 126.4618194 | F14: 126.349078 | G14: 0.1127414089 | W14: -145 | X14: 0.0651398988
D15: 25 | E15: 168.1434731 | F15: 165.9665636 | G15: 2.176909527 | W15: -140 | X15: 0.09631633742
D16: 50 | E16: 202.5833279 | F16: 197.8799978 | G16: 4.703330121 | W16: -135 | X16: 0.140887482
D17: 75 | E17: 219.0920492 | F17: 214.2263987 | G17: 4.865650507 | W17: -130 | X17: 0.2039592845
D18: 100 | E18: 225.8631717 | F18: 222.077605 | G18: 3.785566712 | W18: -125 | X18: 0.2923337405
D19: 125 | E19: 228.4606443 | F19: 225.8631717 | G19: 2.597472579 | W19: -120 | X19: 0.4149836856
D20: 150 | E20: 229.4312967 | F20: 227.7456876 | G20: 1.685609033 | W20: -115 | X20: 0.5836303765
D21: 175 | E21: 229.7904582 | F21: 228.7194229 | G21: 1.07103533 | W21: -110 | X21: 0.8134349857
D22: 200 | E22: 229.9228695 | F22: 229.2438379 | G22: 0.6790315888 | W22: -105 | X22: 1.123810904
W23: -100 | X23: 1.539355713
W24: -95 | X24: 2.090888077
W25: -90 | X25: 2.816553357
W26: -85 | X26: 3.762929927
W27: -80 | X27: 4.98602355
W28: -75 | X28: 6.551978444
W29: -70 | X29: 8.5372624
W30: -65 | X30: 11.02800659
W31: -60 | X31: 14.1181147
W32: -55 | X32: 17.90572934
W33: -50 | X33: 22.48769797
W34: -45 | X34: 27.95186646
W35: -40 | X35: =(LS+US)/2+(US-LS)/2*TANH(($W35-T0_ATANH)/(C_ATANH+D_ATANH*$W35)) -> 34.36738641
A36: Input data | W36: -35 | X36: 41.77375686
W37: -30 | X37: 50.16995987
A38: LS = | B38: 0 | C38: J | D38: RMSE = | E38: =SQRT(SUMSQ(Residuals_ATANH)/(COUNT(Y_values)-3)) -> 2.888677604 | W38: =W37+5 -> -25 | X38: 59.50561971
A39: US = | B39: 230 | C39: J | E39: =(LS_Burr+US_Burr)/2 ->  | H39: 0 | W39: -20 | X39: 69.67636469
E40: =LS_Burr+(US_Burr-LS_Burr)*((1+EXP(-k*(#REF!-T0_Burr)))^(-m)) ->  | F40: =ABS(E39-E40) ->  | G40: =DBTT_Burr -> -6.930494766 | H40: =Y_DBTT ->  | W40: -15 | X40: 80.52524903
W41: -10 | X41: 91.85110199
A42: Variables | B42: C = | C42: 50 | D42: °C (³ 0) | I42: =T0_ATANH -> 0 | J42: 0 | W42: -5 | X42: 103.4231845
B43: D = | C43: 0.1 | D43: 1/°C | I43: =T0_ATANH -> 0 | J43: =(LS+US)/2 -> 115 | W43: 0 | X43: 115
B44: DBTT = | C44: 0 | D44: °C | W44: 5 | X44: 126.349078
W45: 10 | X45: 137.2644168
W46: 15 | X46: 147.5790479
W47: 20 | X47: 157.1715281
W48: 25 | X48: 165.9665636
W49: 30 | X49: 173.9309948
W50: 35 | X50: 181.0668498
W51: 40 | X51: 187.4031365
W52: 45 | X52: 192.9876994
W53: 50 | X53: 197.8799978
W54: 55 | X54: 202.1452253
W55: 60 | X55: 205.8498654
W56: 65 | X56: 209.0585699
W57: 70 | X57: 211.8321447
W58: =W57+5 -> 75 | X58: 214.2263987
W59: 80 | X59: 216.2916255
W60: 85 | X60: 218.0725225
W61: 90 | X61: 219.6083929
W62: 95 | X62: 220.9335162
W63: 100 | X63: 222.077605
W64: 105 | X64: 223.0662928
W65: 110 | X65: 223.9216171
W66: 115 | X66: 224.6624765
W67: 120 | X67: =(LS+US)/2+(US-LS)/2*TANH(($W67-T0_ATANH)/(C_ATANH+D_ATANH*$W67)) -> 225.3050497
W68: 125 | X68: 225.8631717
W69: =W68+5 -> 130 | X69: 226.3486665
W70: 135 | X70: 226.7716376
W71: 140 | X71: 227.1407203
W72: 145 | X72: 227.4632979
W73: 150 | X73: 227.7456876
W74: 155 | X74: 227.9932995
W75: 160 | X75: 228.210771
W76: 165 | X76: 228.4020819
W77: =W76+5 -> 170 | X77: 228.5706519
W78: =W77+5 -> 175 | X78: 228.7194229
W79: 180 | X79: 228.8509297
W80: 185 | X80: 228.967359
W81: 190 | X81: 229.0706001
W82: 195 | X82: 229.1622875
W83: 200 | X83: 229.2438379
W84: 205 | X84: 229.3164803
W85: 210 | X85: 229.381283
W86: 215 | X86: 229.4391759
W87: 220 | X87: 229.4909695
W88: 225 | X88: 229.5373714
W89: =W88+5 -> 230 | X89: 229.5790001
W90: =W89+5 -> 235 | X90: 229.6163972
W91: 240 | X91: 229.6500377
W92: 245 | X92: 229.6803385
W93: 250 | X93: 229.7076663
W94: 255 | X94: 229.7323438
W95: 260 | X95: 229.7546558
W96: 265 | X96: 229.7748536
W97: 270 | X97: 229.7931595
W98: =W97+5 -> 275 | X98: 229.8097702
W99: =W98+5 -> 280 | X99: 229.82486
W100: 285 | X100: 229.8385838
W101: 290 | X101: 229.8510792
W102: =W101+5 -> 295 | X102: 229.8624685
W103: =W102+5 -> 300 | X103: 229.8728609

Sheet BUR
A1: Burr distribution | W1: T | X1: x | Y1: Y
W2: (°C)
B3: Experimental data | D3: T (°C) | E3: Y(T) | W3: -200 | X3: =(1+EXP(-k*($W3-T0_Burr)))^(-m) -> 2.061153622e-09 | Y3: =LS+(US-LS)*$X3 -> 4.740653332e-07
D4: =IF(ISBLANK(Temperatures),NA(),Temperatures) -> -196 | E4: =IF(ISBLANK(Y_values),NA(),Y_values) -> 0.09050824906 | F4: =IF(ISBLANK(Y_values),"",(1+EXP(-k*(Temperatures-T0_Burr)))^(-m)) -> 3.07487988e-09 | G4: =IF(ISBLANK(Y_values),"",LS+(US-LS)*Xi_values) -> 7.072223723e-07 | H4: =IF(ISBLANK(Y_values),"",Y_values-Fit_BURR) -> 0.09050754183 | W4: =W3+5 -> -195 | X4: 3.398267819e-09 | Y4: 7.816015985e-07
D5: -175 | E5: 0.2095417747 | F5: 2.510999156e-08 | G5: 5.775298058e-06 | H5: 0.2095359994 | W5: =W4+5 -> -190 | X5: 5.602796438e-09 | Y5: 1.288643181e-06
D6: -150 | E6: 0.568703326 | F6: 3.059023205e-07 | G6: 7.035753372e-05 | H6: 0.5686329685 | W6: -185 | X6: 9.237449662e-09 | Y6: 2.124613422e-06
D7: -125 | E7: 1.539355713 | F7: 3.726653172e-06 | G7: 0.0008571302296 | H7: 1.538498582 | W7: -180 | X7: 1.522997974e-08 | Y7: 3.502895341e-06
D8: -100 | E8: 4.136828291 | F8: 4.539992976e-05 | G8: 0.01044198385 | H8: 4.126386307 | W8: -175 | X8: 2.510999156e-08 | Y8: 5.775298058e-06
D9: -75 | E9: 10.90795083 | F9: 0.0005530843701 | G9: 0.1272094051 | H9: 10.78074143 | W9: -170 | X9: 4.139937719e-08 | Y9: 9.521856753e-06
D10: -50 | E10: 27.41667207 | F10: 0.006737946999 | G10: 1.54972781 | H10: 25.86694426 | W10: -165 | X10: 6.825603376e-08 | Y10: 1.569888777e-05
D11: -25 | E11: 61.85652692 | F11: 0.08208499862 | G11: 18.87954968 | H11: 42.97697723 | W11: -160 | X11: 1.125351747e-07 | Y11: 2.588309019e-05
D12: -5 | E12: 103.5381806 | F12: 0.60612349 | G12: 139.4084027 | H12: -35.87022207 | W12: -155 | X12: 1.855391363e-07 | Y12: 4.267400134e-05
D13: 0 | E13: 115 | F13: 0.9330329915 | G13: 214.5975881 | H13: -99.59758805 | W13: -150 | X13: 3.059023205e-07 | Y13: 7.035753372e-05
D14: 5 | E14: 126.4618194 | F14: 0.9993286906 | G14: 229.8455988 | H14: -103.3837795 | W14: -145 | X14: 5.043476626e-07 | Y14: 0.0001159999624
D15: 25 | E15: 168.1434731 | F15: 1 | G15: 230 | H15: -61.85652691 | W15: -140 | X15: 8.315287191e-07 | Y15: 0.0001912516054
D16: 50 | E16: 202.5833279 | F16: 1 | G16: 230 | H16: -27.41667207 | W16: -135 | X16: 1.370959086e-06 | Y16: 0.0003153205899
D17: 75 | E17: 219.0920492 | F17: 1 | G17: 230 | H17: -10.90795083 | W17: -130 | X17: 2.260329407e-06 | Y17: 0.0005198757636
D18: 100 | E18: 225.8631717 | F18: 1 | G18: 230 | H18: -4.136828291 | W18: -125 | X18: 3.726653172e-06 | Y18: 0.0008571302296
D19: 125 | E19: 228.4606443 | F19: 1 | G19: 230 | H19: -1.539355713 | W19: -120 | X19: 6.144212353e-06 | Y19: 0.001413168841
D20: 150 | E20: 229.4312967 | F20: 1 | G20: 230 | H20: -0.568703326 | W20: -115 | X20: 1.01300936e-05 | Y20: 0.002329921528
D21: 175 | E21: 229.7904582 | F21: 1 | G21: 230 | H21: -0.2095417747 | W21: -110 | X21: 1.670170079e-05 | Y21: 0.003841391182
D22: 200 | E22: 229.9228695 | F22: 1 | G22: 230 | H22: -0.07713053001 | W22: -105 | X22: 2.753644935e-05 | Y22: 0.00633338335
W23: -100 | X23: 4.539992976e-05 | Y23: 0.01044198385
W24: -95 | X24: 7.485182989e-05 | Y24: 0.01721592087
W25: -90 | X25: 0.0001234098041 | Y25: 0.02838425494
W26: -85 | X26: 0.000203468369 | Y26: 0.04679772487
W27: -80 | X27: 0.0003354626279 | Y27: 0.07715640442
W28: -75 | X28: 0.0005530843701 | Y28: 0.1272094051
W29: -70 | X29: 0.0009118819656 | Y29: 0.2097328521
W30: -65 | X30: 0.001503439193 | Y30: 0.3457910144
W31: -60 | X31: 0.002478752177 | Y31: 0.5701130006
W32: -55 | X32: 0.004086771438 | Y32: 0.9399574308
W33: -50 | X33: 0.006737946999 | Y33: 1.54972781
W34: -45 | X34: 0.01110899654 | Y34: 2.555069204
W35: -40 | X35: =(1+EXP(-k*($W35-T0_Burr)))^(-m) -> 0.01831563889 | Y35: =LS+(US-LS)*$X35 -> 4.212596944
A36: Input data | W36: -35 | X36: 0.03019738342 | Y36: 6.945398187
W37: -30 | X37: 0.04978706837 | Y37: 11.45102572
A38: LS = | B38: =LS -> 0 | C38: J | D38: DBTT = | E38: =T0_Burr-LN((0.5^(-1/m))-1)/k -> -6.930494766 | F38: °C | W38: =W37+5 -> -25 | X38: 0.08208499862 | Y38: 18.87954968
A39: US = | B39: =US -> 230 | C39: J | D39: RMSE = | E39: =SQRT(SUMSQ(Residuals_BURR)/(COUNT(Y_values)-3)) -> 42.76638205 | G39: =DBTT_Burr -> -6.930494766 | H39: 0 | W39: -20 | X39: 0.1353352832 | Y39: 31.12711514
E40: =(LS+US)/2 -> 115 | F40: =ABS(E39-E40) -> 72.23361795 | G40: =DBTT_Burr -> -6.930494766 | H40: =E40 -> 115 | W40: -15 | X40: 0.2231301533 | Y40: 51.31993526
W41: -10 | X41: 0.367877771 | Y41: 84.61188734
A42: Variables | B42: k = | C42: 1 | D42: (³ 0) | W42: -5 | X42: 0.60612349 | Y42: 139.4084027
B43: T0 = | C43: 0 | D43: °C | W43: 0 | X43: 0.9330329915 | Y43: 214.5975881
B44: m = | C44: 0.1 | D44: (³ 0) | W44: 5 | X44: 0.9993286906 | Y44: 229.8455988
W45: 10 | X45: 0.9999954601 | Y45: 229.9989558
W46: 15 | X46: 0.9999999694 | Y46: 229.999993
W47: 20 | X47: 0.9999999998 | Y47: 230
W48: 25 | X48: 1 | Y48: 230
W49: 30 | X49: 1 | Y49: 230
W50: 35 | X50: 1 | Y50: 230
W51: 40 | X51: 1 | Y51: 230
W52: 45 | X52: 1 | Y52: 230
W53: 50 | X53: 1 | Y53: 230
W54: 55 | X54: 1 | Y54: 230
W55: 60 | X55: 1 | Y55: 230
W56: 65 | X56: 1 | Y56: 230
W57: 70 | X57: 1 | Y57: 230
W58: =W57+5 -> 75 | X58: 1 | Y58: 230
W59: 80 | X59: 1 | Y59: 230
W60: 85 | X60: 1 | Y60: 230
W61: 90 | X61: 1 | Y61: 230
W62: 95 | X62: 1 | Y62: 230
W63: 100 | X63: 1 | Y63: 230
W64: 105 | X64: 1 | Y64: 230
W65: 110 | X65: 1 | Y65: 230
W66: 115 | X66: 1 | Y66: 230
W67: 120 | X67: =(1+EXP(-k*($W67-T0_Burr)))^(-m) -> 1 | Y67: =LS+(US-LS)*$X67 -> 230
W68: 125 | X68: 1 | Y68: 230
W69: =W68+5 -> 130 | X69: 1 | Y69: 230
W70: 135 | X70: 1 | Y70: 230
W71: 140 | X71: 1 | Y71: 230
W72: 145 | X72: 1 | Y72: 230
W73: 150 | X73: 1 | Y73: 230
W74: 155 | X74: 1 | Y74: 230
W75: 160 | X75: 1 | Y75: 230
W76: 165 | X76: 1 | Y76: 230
W77: =W76+5 -> 170 | X77: 1 | Y77: 230
W78: =W77+5 -> 175 | X78: 1 | Y78: 230
W79: 180 | X79: 1 | Y79: 230
W80: 185 | X80: 1 | Y80: 230
W81: 190 | X81: 1 | Y81: 230
W82: 195 | X82: 1 | Y82: 230
W83: 200 | X83: 1 | Y83: 230
W84: 205 | X84: 1 | Y84: 230
W85: 210 | X85: 1 | Y85: 230
W86: 215 | X86: 1 | Y86: 230
W87: 220 | X87: 1 | Y87: 230
W88: 225 | X88: 1 | Y88: 230
W89: =W88+5 -> 230 | X89: 1 | Y89: 230
W90: =W89+5 -> 235 | X90: 1 | Y90: 230
W91: 240 | X91: 1 | Y91: 230
W92: 245 | X92: 1 | Y92: 230
W93: 250 | X93: 1 | Y93: 230
W94: 255 | X94: 1 | Y94: 230
W95: 260 | X95: 1 | Y95: 230
W96: 265 | X96: 1 | Y96: 230
W97: 270 | X97: 1 | Y97: 230
W98: =W97+5 -> 275 | X98: 1 | Y98: 230
W99: =W98+5 -> 280 | X99: 1 | Y99: 230
W100: 285 | X100: 1 | Y100: 230
W101: 290 | X101: 1 | Y101: 230
W102: =W101+5 -> 295 | X102: 1 | Y102: 230
W103: =W102+5 -> 300 | X103: 1 | Y103: 230

Sheet KHT
A1: Kohout model (asymmetric) | W1: T | X1: Y (T≤T0) | Y1: Y (T>T0) | Z1: Y
W2: (°C)
B3: Experimental data | D3: T (°C) | E3: Y(T) | W3: -200 | X3: =LS+(US-LS)/(1+p)*EXP((1+p)/(2*C_Kohout)*($W3-T0_Kohout)) -> 4.885607394e-16 | Y3: =US-p*(US-LS)/(1+p)*EXP(-(1+p)/(2*p*C_Kohout)*($W3-T0_Kohout)) -> -2.706930569e+19 | Z3: =IF($W3<=T0_Kohout,$X3,$Y3) -> 4.885607394e-16
D4: =IF(ISBLANK(Temperatures),NA(),Temperatures) -> -196 | E4: =IF(ISBLANK(Y_values),NA(),Y_values) -> 0.09050824906 | F4: =IF(ISBLANK(Temperatures),"",LS+(US-LS)/(1+p)*EXP((1+p)/(2*C_Kohout)*(Temperatures-T0_Kohout))) -> 1.087311921e-15 | G4: =IF(ISBLANK(Temperatures),"",US-p*(US-LS)/(1+p)*EXP(-(1+p)/(2*p*C_Kohout)*(Temperatures-T0_Kohout))) -> -1.216302308e+19 | H4: =IF(ISBLANK(Temperatures),"",IF(Temperatures<=T0_Kohout,Fit1_KASYM,Fit2_KASYM)) -> 1.087311921e-15 | I4: =IF(ISBLANK(Temperatures),"",Y_values-Fit_KASYM) -> 0.09050824906 | W4: =W3+5 -> -195 | X4: 1.32804578e-15 | Y4: -9.958241049e+18 | Z4: 1.32804578e-15
D5: -175 | E5: 0.2095417747 | F5: 7.250884274e-14 | G5: -1.82391547e+17 | H5: 7.250884274e-14 | I5: 0.2095417747 | W5: =W4+5 -> -190 | X5: 3.610002711e-15 | Y5: -3.663432152e+18 | Z5: 3.610002711e-15
D6: -150 | E6: 0.568703326 | F6: 1.076126641e-11 | G6: -1.228944577e+15 | H6: 1.076126641e-11 | I6: 0.568703326 | W6: -185 | X6: 9.81300477e-15 | Y6: -1.347701373e+18 | Z6: 9.81300477e-15
D7: -125 | E7: 1.539355713 | F7: 1.597113544e-09 | G7: -8.280563424e+12 | H7: 1.597113544e-09 | I7: 1.539355711 | W7: -180 | X7: 2.667451255e-14 | Y7: -4.957916279e+17 | Z7: 2.667451255e-14
D8: -100 | E8: 4.136828291 | F8: 2.370326666e-07 | G8: -5.579399724e+10 | H8: 2.370326666e-07 | I8: 4.136828054 | W8: -175 | X8: 7.250884274e-14 | Y8: -1.82391547e+17 | Z8: 7.250884274e-14
D9: -75 | E9: 10.90795083 | F9: 3.517876686e-05 | G9: -375936767.8 | H9: 3.517876686e-05 | I9: 10.90791565 | W9: -170 | X9: 1.970994696e-13 | Y9: -6.709810039e+16 | Z9: 1.970994696e-13
D10: -50 | E10: 27.41667207 | F10: 0.005220991923 | G10: -2532813.566 | H10: 0.005220991923 | I10: 27.41145107 | W10: -165 | X10: 5.357719067e-13 | Y10: -2.468401168e+16 | Z10: 5.357719067e-13
D11: -25 | E11: 61.85652692 | F11: 0.7748639049 | G11: -16837.5133 | H11: 0.7748639049 | I11: 61.08166301 | W11: -160 | X11: 1.456379038e-12 | Y11: -9080740421008050 | Z11: 1.456379038e-12
D12: -5 | E12: 103.5381806 | F12: 42.30613573 | G12: -82.60241027 | H12: 42.30613573 | I12: 61.23204488 | W12: -155 | X12: 3.958848675e-12 | Y12: -3340617711503224 | Z12: 3.958848675e-12
D13: 0 | E13: 115 | F13: 115 | G13: 115 | H13: 115 | I13: 0 | W13: -150 | X13: 1.076126641e-11 | Y13: -1.228944577e+15 | Z13: 1.076126641e-11
D14: 5 | E14: 126.4618194 | F14: 312.6024103 | G14: 187.6938643 | H14: 187.6938643 | I14: -61.23204488 | W14: -145 | X14: 2.925215494e-11 | Y14: -4.521034442e+14 | Z14: 2.925215494e-11
D15: 25 | E15: 168.1434731 | F15: 17067.5133 | G15: 229.2251361 | H15: 229.2251361 | I15: -61.08166301 | W15: -140 | X15: 7.951560123e-11 | Y15: -1.663195624e+14 | Z15: 7.951560123e-11
D16: 50 | E16: 202.5833279 | F16: 2533043.566 | G16: 229.994779 | H16: 229.994779 | I16: -27.41145107 | W16: -135 | X16: 2.161458139e-10 | Y16: -6.118554767e+13 | Z16: 2.161458139e-10
D17: 75 | E17: 219.0920492 | F17: 375936997.8 | G17: 229.9999648 | H17: 229.9999648 | I17: -10.90791565 | W17: -130 | X17: 5.875452382e-10 | Y17: -2.250890508e+13 | Z17: 5.875452382e-10
D18: 100 | E18: 225.8631717 | F18: 5.579399747e+10 | G18: 229.9999998 | H18: 229.9999998 | I18: -4.136828054 | W18: -125 | X18: 1.597113544e-09 | Y18: -8.280563424e+12 | Z18: 1.597113544e-09
D19: 125 | E19: 228.4606443 | F19: 8.280563424e+12 | G19: 230 | H19: 230 | I19: -1.539355711 | W19: -120 | X19: 4.341404726e-09 | Y19: -3.046249045e+12 | Z19: 4.341404726e-09
D20: 150 | E20: 229.4312967 | F20: 1.228944577e+15 | G20: 230 | H20: 230 | I20: -0.568703326 | W20: -115 | X20: 1.180116158e-08 | Y20: -1.120652396e+12 | Z20: 1.180116158e-08
D21: 175 | E21: 229.7904582 | F21: 1.82391547e+17 | G21: 230 | H21: 230 | I21: -0.2095417747 | W21: -110 | X21: 3.207888307e-08 | Y21: -4.122649771e+11 | Z21: 3.207888307e-08
D22: 200 | E22: 229.9228695 | F22: 2.706930569e+19 | G22: 230 | H22: 230 | I22: -0.07713053001 | W22: -105 | X22: 8.719944492e-08 | Y22: -1.516638092e+11 | Z22: 8.719944492e-08
W23: -100 | X23: 2.370326666e-07 | Y23: -5.579399724e+10 | Z23: 2.370326666e-07
W24: -95 | X24: 6.443215903e-07 | Y24: -2.052546438e+10 | Z24: 6.443215903e-07
W25: -90 | X25: 1.751447671e-06 | Y25: -7550896221 | Z25: 1.751447671e-06
W26: -85 | X26: 4.760928377e-06 | Y26: -2777819337 | Z26: 4.760928377e-06
W27: -80 | X27: 1.294154509e-05 | Y27: -1021902480 | Z27: 1.294154509e-05
W28: -75 | X28: 3.517876686e-05 | Y28: -375936767.8 | Z28: 3.517876686e-05
W29: -70 | X29: 9.56258027e-05 | Y29: -138299262.7 | Z29: 9.56258027e-05
W30: -65 | X30: 0.0002599378818 | Y30: -50877310.08 | Z30: 0.0002599378818
W31: -60 | X31: 0.0007065844206 | Y31: -18716571.01 | Z31: 0.0007065844206
W32: -55 | X32: 0.001920695591 | Y32: -6885296.297 | Z32: 0.001920695591
W33: -50 | X33: 0.005220991923 | Y33: -2532813.566 | Z33: 0.005220991923
W34: -45 | X34: 0.01419212747 | Y34: -931624.6517 | Z34: 0.01419212747
W35: -40 | X35: =LS+(US-LS)/(1+p)*EXP((1+p)/(2*C_Kohout)*($W35-T0_Kohout)) -> 0.03857820221 | Y35: =US-p*(US-LS)/(1+p)*EXP(-(1+p)/(2*p*C_Kohout)*($W35-T0_Kohout)) -> -342580.1685 | Z35: =IF($W35<=T0_Kohout,$X35,$Y35) -> 0.03857820221
A36: Input data | W36: -35 | X36: 0.104866426 | Y36: -125882.8132 | Z36: 0.104866426
E37: =T0_Kohout+2*C_Kohout/(1+p)*LN((1+p)/2) -> 0 | F37: =T0_Kohout-p*2*C_Kohout/(1+p)*LN((1+p)/(2*p)) -> 0 | W37: -30 | X37: 0.2850565003 | Y37: -46164.31125 | Z37: 0.2850565003
A38: LS = | B38: =LS -> 0 | C38: J | D38: DBTT = | E38: =IF(AVERAGE(DBTT1_KASYM,DBTT2_KASYM)<T0_Kohout,DBTT1_KASYM,DBTT2_KASYM) -> 0 | F38: °C | W38: =W37+5 -> -25 | X38: 0.7748639049 | Y38: -16837.5133 | Z38: 0.7748639049
A39: US = | B39: =US -> 230 | C39: J | D39: RMSE = | E39: =SQRT(SUMSQ(Residuals_KASYM)/(COUNT(Y_values)-3)) -> 32.34687101 | G39: =DBTT_Kohout -> 0 | H39: 0 | W39: -20 | X39: 2.106298472 | Y39: -6048.787254 | Z39: 2.106298472
E40: =IF(DBTT_Kohout<=T0_Kohout,LS_Kohout+(US_Kohout-LS_Kohout)/(1+p)*EXP((1+p)/(2*C_Kohout)*(DBTT_Kohout-T0_Kohout)),US_Kohout-p*(US_Kohout-LS_Kohout)/(1+p)*EXP(-(1+p)/(2*p*C_Kohout)*(DBTT_Kohout-T0_Kohout))) ->  | F40: =ABS(E39-E40) ->  | G40: =DBTT_Kohout -> 0 | H40: =(LS+US)/2 -> 115 | W40: -15 | X40: 5.725512862 | Y40: -2079.836746 | Z40: 5.725512862
W41: -10 | X41: 15.56355757 | Y41: -619.7414514 | Z41: 15.56355757
A42: Variables | B42: C = | C42: 5 | D42: °C (³ 0) | W42: -5 | X42: 42.30613573 | Y42: -82.60241027 | Z42: 42.30613573
B43: T0 = | C43: 0 | D43: °C | W43: 0 | X43: 115 | Y43: 115 | Z43: 115
B44: p = | C44: 1 | D44: (³ 0) | W44: 5 | X44: 312.6024103 | Y44: 187.6938643 | Z44: 187.6938643
W45: 10 | X45: 849.7414514 | Y45: 214.4364424 | Z45: 214.4364424
W46: 15 | X46: 2309.836746 | Y46: 224.2744871 | Z46: 224.2744871
W47: 20 | X47: 6278.787254 | Y47: 227.8937015 | Z47: 227.8937015
W48: 25 | X48: 17067.5133 | Y48: 229.2251361 | Z48: 229.2251361
W49: 30 | X49: 46394.31125 | Y49: 229.7149435 | Z49: 229.7149435
W50: 35 | X50: 126112.8132 | Y50: 229.8951336 | Z50: 229.8951336
W51: 40 | X51: 342810.1685 | Y51: 229.9614218 | Z51: 229.9614218
W52: 45 | X52: 931854.6517 | Y52: 229.9858079 | Z52: 229.9858079
W53: 50 | X53: 2533043.566 | Y53: 229.994779 | Z53: 229.994779
W54: 55 | X54: 6885526.297 | Y54: 229.9980793 | Z54: 229.9980793
W55: 60 | X55: 18716801.01 | Y55: 229.9992934 | Z55: 229.9992934
W56: 65 | X56: 50877540.08 | Y56: 229.9997401 | Z56: 229.9997401
W57: 70 | X57: 138299492.7 | Y57: 229.9999044 | Z57: 229.9999044
W58: =W57+5 -> 75 | X58: 375936997.8 | Y58: 229.9999648 | Z58: 229.9999648
W59: 80 | X59: 1021902710 | Y59: 229.9999871 | Z59: 229.9999871
W60: 85 | X60: 2777819567 | Y60: 229.9999952 | Z60: 229.9999952
W61: 90 | X61: 7550896451 | Y61: 229.9999982 | Z61: 229.9999982
W62: 95 | X62: 2.052546461e+10 | Y62: 229.9999994 | Z62: 229.9999994
W63: 100 | X63: 5.579399747e+10 | Y63: 229.9999998 | Z63: 229.9999998
W64: 105 | X64: 1.516638095e+11 | Y64: 229.9999999 | Z64: 229.9999999
W65: 110 | X65: 4.122649773e+11 | Y65: 230 | Z65: 230
W66: 115 | X66: 1.120652396e+12 | Y66: 230 | Z66: 230
W67: 120 | X67: =LS+(US-LS)/(1+p)*EXP((1+p)/(2*C_Kohout)*($W67-T0_Kohout)) -> 3.046249045e+12 | Y67: =US-p*(US-LS)/(1+p)*EXP(-(1+p)/(2*p*C_Kohout)*($W67-T0_Kohout)) -> 230 | Z67: =IF($W67<=T0_Kohout,$X67,$Y67) -> 230
W68: 125 | X68: 8.280563424e+12 | Y68: 230 | Z68: 230
W69: =W68+5 -> 130 | X69: 2.250890508e+13 | Y69: 230 | Z69: 230
W70: 135 | X70: 6.118554767e+13 | Y70: 230 | Z70: 230
W71: 140 | X71: 1.663195624e+14 | Y71: 230 | Z71: 230
W72: 145 | X72: 4.521034442e+14 | Y72: 230 | Z72: 230
W73: 150 | X73: 1.228944577e+15 | Y73: 230 | Z73: 230
W74: 155 | X74: 3340617711503454 | Y74: 230 | Z74: 230
W75: 160 | X75: 9080740421008280 | Y75: 230 | Z75: 230
W76: 165 | X76: 2.468401168e+16 | Y76: 230 | Z76: 230
W77: =W76+5 -> 170 | X77: 6.709810039e+16 | Y77: 230 | Z77: 230
W78: =W77+5 -> 175 | X78: 1.82391547e+17 | Y78: 230 | Z78: 230
W79: 180 | X79: 4.957916279e+17 | Y79: 230 | Z79: 230
W80: 185 | X80: 1.347701373e+18 | Y80: 230 | Z80: 230
W81: 190 | X81: 3.663432152e+18 | Y81: 230 | Z81: 230
W82: 195 | X82: 9.958241049e+18 | Y82: 230 | Z82: 230
W83: 200 | X83: 2.706930569e+19 | Y83: 230 | Z83: 230
W84: 205 | X84: 7.358200176e+19 | Y84: 230 | Z84: 230
W85: 210 | X85: 2.000166183e+20 | Y85: 230 | Z85: 230
W86: 215 | X86: 5.437015388e+20 | Y86: 230 | Z86: 230
W87: 220 | X87: 1.477934013e+21 | Y87: 230 | Z87: 230
W88: 225 | X88: 4.017441172e+21 | Y88: 230 | Z88: 230
W89: =W88+5 -> 230 | X89: 1.092053733e+22 | Y89: 230 | Z89: 230
W90: =W89+5 -> 235 | X90: 2.968509819e+22 | Y90: 230 | Z90: 230
W91: 240 | X91: 8.069246299e+22 | Y91: 230 | Z91: 230
W92: 245 | X92: 2.193448558e+23 | Y92: 230 | Z92: 230
W93: 250 | X93: 5.962411358e+23 | Y93: 230 | Z93: 230
W94: 255 | X94: 1.620751445e+24 | Y94: 230 | Z94: 230
W95: 260 | X95: 4.405659201e+24 | Y95: 230 | Z95: 230
W96: 265 | X96: 1.197582335e+25 | Y96: 230 | Z96: 230
W97: 270 | X97: 3.255366299e+25 | Y97: 230 | Z97: 230
W98: =W97+5 -> 275 | X98: 8.849003055e+25 | Y98: 230 | Z98: 230
W99: =W98+5 -> 280 | X99: 2.40540842e+26 | Y99: 230 | Z99: 230
W100: 285 | X100: 6.538577999e+26 | Y100: 230 | Z100: 230
W101: 290 | X101: 1.777369776e+27 | Y101: 230 | Z101: 230
W102: =W101+5 -> 295 | X102: 4.831391964e+27 | Y102: 230 | Z102: 230
W103: =W102+5 -> 300 | X103: 1.313308498e+28 | Y103: 230 | Z103: 230
